fUST/lending_fUST_20250116
["ID","MTS","AMOUNT","RATE_DAILY","PERIOD"]
[349107198,1736971835871,-500.0,0.00019957,2]
[349107199,1736971835880,-377.91793434,0.00019957,2]
[349107200,1736971835889,-500.0,0.00019958,3]
[349107201,1736971835899,-500.0,0.00019958,3]
[349107202,1736971835908,-218.12316253,0.00019958,3]
[349107203,1736971835917,-589.21,0.00019958,3]
[349107204,1736971835927,-500.0,0.00019958,3]
[349107205,1736971835940,-500.0,0.00019958,3]
[349107206,1736971835949,-500.0,0.00019958,3]
[349107207,1736971835959,-500.0,0.00019958,3]
[349107208,1736971835968,-500.0,0.00019958,3]
[349107209,1736971835978,-500.0,0.00019958,3]
[349107210,1736971835987,-500.0,0.00019958,3]
[349107211,1736971835996,-500.0,0.00019958,3]
[349107212,1736971836006,-329.52431833,0.00019958,3]
[349107213,1736971836015,-500.0,0.00019958,3]
[349107214,1736971836025,-500.0,0.00019958,3]
[349107215,1736971836034,-500.0,0.00019958,3]
[349107216,1736971836044,-500.0,0.00019958,3]
[349107217,1736971836053,-500.0,0.00019958,3]
[349107218,1736971836063,-500.0,0.00019958,3]
[349107219,1736971836073,-500.0,0.00019958,3]
[349107220,1736971836082,-500.0,0.00019958,3]
[349107221,1736971836092,-500.0,0.00019959,3]
[349107222,1736971836102,-500.0,0.00019959,3]
[349107223,1736971836111,-500.0,0.00019959,3]
[349107224,1736971836121,-500.0,0.00019959,3]
[349107225,1736971836131,-461.28,0.00019959,3]
[349107226,1736971836142,-273.79,0.00019959,3]
[349107227,1736971836153,-500.0,0.00019959,3]
[349107228,1736971836163,-500.0,0.00019959,3]
[349107229,1736971836173,-500.0,0.00019959,3]
[349107230,1736971836182,-500.0,0.00019959,3]
[349107231,1736971836191,-500.0,0.00019959,3]
[349107232,1736971836201,-500.0,0.00019959,3]
[349107233,1736971836211,-500.0,0.00019959,3]
[349107234,1736971836220,-500.0,0.00019959,3]
[349107235,1736971836230,-500.0,0.00019959,3]
[349107236,1736971836240,-500.0,0.00019959,3]
[349107237,1736971836250,-500.0,0.00019959,3]
[349107238,1736971836259,-500.0,0.00019959,3]
[349107239,1736971836270,-500.0,0.00019959,3]
[349107240,1736971836279,-500.0,0.00019959,3]
[349107241,1736971836289,-500.0,0.00019959,3]
[349107242,1736971836299,-500.0,0.00019959,3]
[349107243,1736971836309,-500.0,0.00019959,3]
[349107244,1736971836318,-505.67,0.00019959,3]
[349107245,1736971836327,-214.20797547,0.00019959,3]
[349107246,1736971836337,-500.0,0.00019959,3]
[349107247,1736971836346,-224.81312592,0.00019959,3]
[349107248,1736971836356,-500.0,0.00019959,3]
[349107249,1736971836365,-500.0,0.00019959,3]
[349107250,1736971836374,-500.0,0.00019959,3]
[349107251,1736971836384,-640.22,0.00019959,3]
[349107252,1736971836393,-500.0,0.00019959,3]
[349107253,1736971836403,-500.0,0.00019959,3]
[349107254,1736971836412,-532.25384435,0.00019959,3]
[349107255,1736971836422,-550.52,0.00019959,3]
[349107256,1736971836431,-500.0,0.00019959,3]
[349107257,1736971836441,-500.0,0.00019959,3]
[349107258,1736971836451,-500.0,0.00019959,3]
[349107259,1736971836460,-500.0,0.00019959,3]
[349107260,1736971836470,-500.0,0.00019959,3]
[349107261,1736971836479,-500.0,0.00019959,3]
[349107262,1736971836488,-500.0,0.00019959,3]
[349107263,1736971836498,-500.0,0.00019959,3]
[349107264,1736971836507,-502.36,0.00019959,3]
[349107265,1736971836516,-500.0,0.00019959,3]
[349107266,1736971836526,-500.0,0.00019959,3]
[349107267,1736971836536,-610.28267685,0.00019959,3]
[349107268,1736971836546,-500.0,0.00019959,3]
[349107269,1736971836555,-500.0,0.00019959,3]
[349107270,1736971836564,-500.0,0.00019959,3]
[349107271,1736971836573,-2240.67,0.00019959,3]
[349107272,1736971836583,-500.0,0.00019959,3]
[349107273,1736971836592,-500.0,0.00019959,3]
[349107274,1736971836602,-500.0,0.00019959,3]
[349107275,1736971836611,-500.0,0.00019959,3]
[349107276,1736971836620,-500.0,0.00019959,3]
[349107277,1736971836630,-500.0,0.00019973,2]
[349107278,1736971836640,-500.0,0.00019973,2]
[349107279,1736971836649,-500.0,0.00019996,3]
[349107280,1736971836659,-500.0,0.00019996,3]
[349107281,1736971836668,-500.0,0.00019996,3]
[349107282,1736971836678,-500.0,0.00019996,3]
[349107283,1736971836689,-500.0,0.00019997,3]
[349107284,1736971836701,-327.2,0.00019997,3]
[349107285,1736971836711,-499.0,0.00019997,2]
[349107286,1736971836721,-355.58,0.00019997,3]
[349107287,1736971836731,-500.0,0.00019998,3]
[349107288,1736971836741,-500.0,0.00019998,3]
[349107289,1736971836750,-500.0,0.00019998,3]
[349107290,1736971836759,-329.70903579,0.00019998,3]
[349107291,1736971836769,-502.56060606,0.00019998,3]
[349107292,1736971836779,-500.0,0.00019998,3]
[349107293,1736971836788,-500.0,0.00019998,3]
[349107294,1736971836798,-500.0,0.00019998,3]
[349107295,1736971836808,-500.0,0.00019998,3]
[349107296,1736971836817,-378.32955693,0.00019998,3]
[349107297,1736971836827,-500.0,0.00019998,3]
[349107298,1736971836837,-500.0,0.00019998,3]
[349107299,1736971836846,-500.0,0.00019998,3]
[349107300,1736971836855,-500.0,0.00019998,3]
[349107301,1736971836865,-500.0,0.00019998,3]
[349107302,1736971836874,-500.0,0.00019998,3]
[349107303,1736971836883,-500.0,0.00019998,3]
[349107304,1736971836892,-500.0,0.00019998,3]
[349107305,1736971836902,-500.0,0.00019998,3]
[349107306,1736971836912,-500.0,0.00019998,3]
[349107307,1736971836921,-500.0,0.00019998,3]
[349107308,1736971836931,-500.0,0.00019998,3]
[349107309,1736971836940,-581.46066006,0.00019998,3]
[349107310,1736971836949,-500.0,0.00019998,3]
[349107311,1736971836959,-565.02,0.00019998,3]
[349107312,1736971836968,-500.0,0.00019998,3]
[349107313,1736971836977,-500.0,0.00019998,3]
[349107314,1736971836986,-500.0,0.00019998,3]
[349107315,1736971836995,-554.14214717,0.00019998,3]
[349107316,1736971837005,-649.02,0.00019998,3]
[349107317,1736971837014,-500.0,0.00019998,3]
[349107318,1736971837024,-500.0,0.00019998,3]
[349107319,1736971837034,-233.28084115,0.00019998,3]
[349107320,1736971837043,-500.0,0.00019998,3]
[349107321,1736971837053,-67942.64470276,0.0002,4]
[349107322,1736971837061,-1573.0,0.0002,2]
[349107323,1736971837071,-682.75183114,0.00020072,2]
[349107324,1736971837080,-500.0,0.00020094,3]
[349107325,1736971837089,-500.0,0.00020095,3]
[349107326,1736971837099,-589.21,0.00020095,3]
[349107327,1736971837108,-500.0,0.00020095,3]
[349107328,1736971837118,-500.0,0.00020095,3]
[349107329,1736971837127,-500.0,0.00020095,3]
[349107330,1736971837136,-500.0,0.00020095,3]
[349107331,1736971837146,-500.0,0.00020095,3]
[349107332,1736971837155,-500.0,0.00020095,3]
[349107333,1736971837165,-500.0,0.00020095,3]
[349107334,1736971837174,-332.736085,0.00020095,3]
[349107335,1736971837184,-500.0,0.00020095,3]
[349107336,1736971837193,-500.0,0.00020095,3]
[349107337,1736971837203,-500.0,0.00020095,3]
[349107338,1736971837213,-500.0,0.00020096,3]
[349107339,1736971837222,-550.52,0.00020096,3]
[349107340,1736971837233,-500.0,0.00020096,3]
[349107341,1736971837242,-500.0,0.00020096,3]
[349107342,1736971837251,-500.0,0.00020096,3]
[349107343,1736971837261,-2240.67,0.00020096,3]
[349107344,1736971837270,-500.0,0.00020096,3]
[349107345,1736971837280,-500.0,0.00020096,3]
[349107346,1736971837289,-500.07585241,0.00020135,3]
[349107347,1736971837300,-500.0,0.00020135,3]
[349107348,1736971837310,-347.58,0.00020135,3]
[349107349,1736971837319,-500.0,0.00020135,3]
[349107350,1736971837328,-500.0,0.00020135,3]
[349107351,1736971837338,-500.0,0.00020135,3]
[349107352,1736971837347,-500.0,0.00020135,3]
[349107353,1736971837356,-500.0,0.00020135,3]
[349107354,1736971837435,-500.0,0.00020135,3]
[349107355,1736971837445,-500.0,0.00020135,3]
[349107356,1736971837454,-500.0,0.00020135,3]
[349107357,1736971837464,-500.0,0.00020135,3]
[349107358,1736971837473,-500.0,0.00020135,3]
[349107359,1736971837483,-500.0,0.00020135,3]
[349107360,1736971837492,-500.0,0.00020135,3]
[349107361,1736971837502,-486.09847177,0.00020209,2]
[349107362,1736971837511,-500.0,0.00020209,2]
[349107363,1736971837521,-500.0,0.00020209,2]
[349107364,1736971837531,-500.0,0.00020231,3]
[349107365,1736971837541,-500.0,0.00020232,3]
[349107366,1736971837552,-589.21,0.00020232,3]
[349107367,1736971837561,-500.0,0.00020232,3]
[349107368,1736971837571,-500.0,0.00020232,3]
[349107369,1736971837580,-500.0,0.00020232,3]
[349107370,1736971837590,-500.0,0.00020232,3]
[349107371,1736971837599,-500.0,0.00020232,3]
[349107372,1736971837609,-500.0,0.00020232,3]
[349107373,1736971837619,-500.0,0.00020232,3]
[349107374,1736971837630,-500.0,0.00020232,3]
[349107375,1736971837640,-500.0,0.00020232,3]
[349107376,1736971837651,-550.52,0.00020233,3]
[349107377,1736971837661,-500.0,0.00020233,3]
[349107378,1736971837671,-2240.67,0.00020233,3]
[349107379,1736971837681,-500.0,0.00020233,3]
[349107380,1736971837694,-500.0,0.00020233,3]
[349107381,1736971837705,-682.75183114,0.00020245,2]
[349107382,1736971837716,-164.19189128,0.00020272,3]
[349107383,1736971837727,-500.0,0.00020272,3]
[349107384,1736971837737,-570.68357035,0.00020318,2]
[349107385,1736971837746,-500.0,0.00020368,3]
[349107386,1736971837755,-500.0,0.00020369,3]
[349107387,1736971837766,-589.21,0.00020369,3]
[349107388,1736971837775,-500.0,0.00020369,3]
[349107389,1736971837785,-500.0,0.00020369,3]
[349107390,1736971837795,-500.0,0.00020369,3]
[349107391,1736971837805,-500.0,0.00020369,3]
[349107392,1736971837815,-279.7342489,0.00020369,3]
[349107393,1736971837824,-500.0,0.00020369,3]
[349107394,1736971837834,-500.0,0.00020369,3]
[349107395,1736971837843,-500.0,0.00020369,3]
[349107396,1736971837853,-500.0,0.00020369,3]
[349107397,1736971837863,-550.52,0.0002037,3]
[349107398,1736971837872,-500.0,0.0002037,3]
[349107399,1736971837882,-2240.67,0.0002037,3]
[349107400,1736971837892,-500.0,0.0002037,3]
[349107401,1736971837902,-500.0,0.0002037,3]
[349107402,1736971837911,-265.05691179,0.00020409,3]
[349107403,1736971837921,-682.75183114,0.00020417,2]
[349107405,1736971837930,-500.0,0.00020505,3]
[349107407,1736971837939,-500.0,0.00020506,3]
[349107409,1736971837949,-589.21,0.00020506,3]
[349107410,1736971837959,-500.0,0.00020506,3]
[349107412,1736971837968,-500.0,0.00020506,3]
[349107414,1736971837977,-500.0,0.00020506,3]
[349107415,1736971837987,-500.0,0.00020506,3]
[349107416,1736971837997,-500.0,0.00020506,3]
[349107417,1736971838006,-500.0,0.00020506,3]
[349107418,1736971838015,-500.0,0.00020506,3]
[349107419,1736971838026,-500.0,0.00020506,3]
[349107420,1736971838036,-550.52,0.00020507,3]
[349107421,1736971838046,-500.0,0.00020507,3]
[349107422,1736971838055,-2240.67,0.00020507,3]
[349107423,1736971838064,-500.0,0.00020507,9]
[349107424,1736971838073,-500.0,0.00020507,3]
[349107426,1736971838083,-500.0,0.00020507,3]
[349107428,1736971838092,-500.0,0.00020521,2]
[349107429,1736971838102,-682.75183114,0.0002059,2]
[349107430,1736971838112,-339.95459923,0.00020619,2]
[349107431,1736971838122,-500.0,0.00020642,3]
[349107432,1736971838131,-500.0,0.00020643,3]
[349107433,1736971838140,-589.21,0.00020643,3]
[349107434,1736971838149,-500.0,0.00020643,3]
[349107436,1736971838159,-500.0,0.00020643,3]
[349107437,1736971838169,-500.0,0.00020643,3]
[349107438,1736971838178,-500.0,0.00020643,3]
[349107439,1736971838188,-191.33961165,0.00020643,3]
[349107441,1736971838197,-500.0,0.00020643,3]
[349107443,1736971838207,-500.0,0.00020643,3]
[349107445,1736971838216,-500.0,0.00020643,3]
[349107447,1736971838225,-550.52,0.00020644,3]
[349107449,1736971838235,-334.3,0.00020644,3]
[349107451,1736971838244,-2240.67,0.00020644,3]
[349107453,1736971838255,-500.0,0.00020644,3]
[349107455,1736971838265,-500.0,0.00020644,3]
[349107457,1736971838274,-1000.0,0.00020757,2]
[349107459,1736971838284,-682.75183114,0.00020762,2]
[349107461,1736971838295,-500.0,0.00020779,3]
[349107464,1736971838309,-500.0,0.0002078,3]
[349107466,1736971838324,-589.21,0.0002078,3]
[349107468,1736971838337,-500.0,0.0002078,3]
[349107471,1736971838350,-430.5080035,0.0002078,3]
[349107473,1736971838361,-500.0,0.0002078,3]
[349107475,1736971838376,-500.0,0.0002078,3]
[349107477,1736971838389,-500.0,0.0002078,3]
[349107479,1736971838402,-500.0,0.0002078,3]
[349107482,1736971838415,-500.0,0.0002078,3]
[349107484,1736971838428,-550.52,0.00020781,3]
[349107486,1736971838441,-2240.67,0.00020781,3]
[349107489,1736971838454,-500.0,0.00020781,3]
[349107491,1736971838468,-420.0,0.00020781,2]
[349107493,1736971838480,-500.0,0.00020781,3]
[349107495,1736971838492,-570.68357035,0.00020916,2]
[349107497,1736971838505,-500.0,0.00020916,3]
[349107498,1736971838516,-260.565087,0.00020917,3]
[349107499,1736971838530,-589.21,0.00020917,3]
[349107500,1736971838543,-500.0,0.00020917,3]
[349107501,1736971838556,-500.0,0.00020917,3]
[349107502,1736971838567,-500.0,0.00020917,3]
[349107503,1736971838578,-500.0,0.00020917,3]
[349107504,1736971838589,-500.0,0.00020917,3]
[349107505,1736971838602,-500.0,0.00020917,3]
[349107506,1736971838614,-550.52,0.00020918,3]
[349107507,1736971838627,-2240.67,0.00020918,3]
[349107508,1736971838641,-602.0,0.00020918,3]
[349107509,1736971838653,-500.0,0.00020918,3]
[349107510,1736971838666,-682.75183114,0.00020934,2]
[349107511,1736971838682,-500.0,0.00021053,3]
[349107512,1736971838698,-589.21,0.00021054,3]
[349107513,1736971838712,-500.0,0.00021054,3]
[349107514,1736971838723,-500.0,0.00021054,3]
[349107515,1736971838733,-500.0,0.00021054,3]
[349107516,1736971838746,-522.17203439,0.00021054,3]
[349107517,1736971838757,-500.0,0.00021054,3]
[349107518,1736971838773,-530.27,0.00021054,3]
[349107519,1736971838788,-550.52,0.00021055,3]
[349107520,1736971838802,-2240.67,0.00021055,3]
[349107521,1736971838812,-500.0,0.00021055,3]
[349107522,1736971838823,-682.75183114,0.00021107,2]
[349107523,1736971838834,-500.0,0.0002119,3]
[349107524,1736971838847,-589.21,0.00021191,3]
[349107525,1736971838859,-500.0,0.00021191,3]
[349107526,1736971838871,-500.0,0.00021191,3]
[349107527,1736971838881,-500.0,0.00021191,3]
[349107528,1736971838893,-500.0,0.00021191,3]
[349107529,1736971838904,-550.52,0.00021192,3]
[349107530,1736971838916,-2240.67,0.00021192,3]
[349107531,1736971838927,-500.0,0.00021192,11]
[349107532,1736971838938,-500.0,0.00021192,3]
[349107533,1736971838950,-160.48916,0.00021209,2]
[349107534,1736971838961,-682.75183114,0.00021279,2]
[349107535,1736971838972,-3923.12,0.000213,2]
[349107536,1736971838983,-500.0,0.00021327,3]
[349107537,1736971838994,-589.21,0.00021328,3]
[349107538,1736971839006,-500.0,0.00021328,3]
[349107539,1736971839018,-432.1193678,0.00021328,3]
[349107540,1736971839028,-500.0,0.00021328,3]
[349107541,1736971839040,-500.0,0.00021328,3]
[349107542,1736971839053,-550.52,0.00021329,3]
[349107543,1736971839064,-2240.67,0.00021329,3]
[349107544,1736971839076,-500.0,0.00021329,3]
[349107545,1736971839087,-339.95459923,0.0002138,2]
[349107546,1736971839098,-682.75183114,0.00021452,2]
[349107547,1736971839110,-500.0,0.00021464,3]
[349107548,1736971839121,-589.21,0.00021465,3]
[349107549,1736971839133,-564.10139032,0.00021465,3]
[349107550,1736971839145,-500.0,0.00021465,3]
[349107551,1736971839156,-471.94,0.00021465,3]
[349107552,1736971839168,-550.52,0.00021466,3]
[349107553,1736971839179,-2240.67,0.00021466,3]
[349107554,1736971839191,-500.0,0.00021466,3]
[349107555,1736971839202,-570.68357035,0.00021514,2]
[349107556,1736971839214,-1573.0,0.000216,4]
[349107557,1736971839225,-500.0,0.00021601,3]
[349107558,1736971839238,-589.21,0.00021602,3]
[349107559,1736971839249,-500.0,0.00021602,3]
[349107560,1736971839261,-550.52,0.00021603,3]
[349107561,1736971839272,-2240.67,0.00021603,3]
[349107562,1736971839284,-500.0,0.00021603,3]
[349107563,1736971839296,-682.75183114,0.00021624,2]
[349107564,1736971839308,-500.0,0.00021738,3]
[349107565,1736971839319,-589.21,0.00021739,3]
[349107566,1736971839331,-500.0,0.00021739,3]
[349107567,1736971839343,-550.52,0.0002174,3]
[349107568,1736971839433,-2240.67,0.0002174,3]
[349107569,1736971839468,-500.0,0.0002174,3]
[349107570,1736971839479,-500.0,0.00021759,2]
[349107571,1736971839489,-10338.84551739,0.00021793,2]
[349107572,1736971839499,-682.75183114,0.00021797,2]
[349107573,1736971839510,-681.428,0.0002185,2]
[349107574,1736971839520,-500.0,0.00021875,3]
[349107575,1736971839530,-589.21,0.00021876,3]
[349107576,1736971839540,-500.0,0.00021876,3]
[349107577,1736971839551,-550.52,0.00021877,3]
[349107578,1736971839561,-2240.67,0.00021877,3]
[349107579,1736971839571,-441.27116633,0.00021877,3]
[349107580,1736971839581,-203.71718513,0.00021917,3]
[349107581,1736971839591,-166.65,0.0002192,2]
[349107582,1736971839600,-166.65,0.0002192,2]
[349107583,1736971839609,-166.65,0.0002192,2]
[349107584,1736971839619,-166.65,0.0002192,2]
[349107585,1736971839629,-166.65,0.0002192,2]
[349107586,1736971839640,-166.65,0.0002192,2]
[349107587,1736971839649,-166.65,0.0002192,2]
[349107588,1736971839659,-10338.84551739,0.00021944,2]
[349107589,1736971839668,-682.75183114,0.00021969,2]
[349107590,1736971839678,-500.0,0.00022012,3]
[349107591,1736971839689,-589.21,0.00022013,3]
[349107592,1736971839702,-500.0,0.00022013,3]
[349107593,1736971839712,-550.52,0.00022014,3]
[349107594,1736971839722,-2240.67,0.00022014,3]
[349107595,1736971839731,-570.68357035,0.00022111,2]
[349107596,1736971839740,-339.95459923,0.0002214,2]
[349107597,1736971839750,-682.75183114,0.00022141,2]
[349107598,1736971839760,-251.49117209,0.00022149,3]
[349107599,1736971839770,-589.21,0.0002215,3]
[349107600,1736971839780,-500.0,0.0002215,3]
[349107601,1736971839790,-550.52,0.00022151,3]
[349107602,1736971839800,-2240.67,0.00022151,3]
[349107603,1736971839810,-353.4540553,0.00022164,2]
[349107604,1736971839819,-353.4540553,0.00022164,2]
[349107605,1736971839829,-306.9991017,0.00022164,2]
[349107606,1736971839839,-10338.84551739,0.00022223,2]
[349107607,1736971839848,-589.21,0.00022287,3]
[349107608,1736971839859,-500.0,0.00022287,3]
[349107609,1736971839868,-550.52,0.00022288,3]
[349107610,1736971839878,-2240.67,0.00022288,3]
[349107611,1736971839888,-682.75183114,0.00022314,2]
[349107612,1736971839898,-589.21,0.00022424,3]
[349107613,1736971839907,-641.49014788,0.00022424,3]
[349107614,1736971839917,-550.52,0.00022425,3]
[349107616,1736971839927,-2240.67,0.00022425,3]
[349107617,1736971839936,-152079.49071287,0.00022464,3]
[349107618,1736971839947,-227.71716312,0.00022473,2]
[349107619,1736971839956,-682.75183114,0.00022486,2]
[349107620,1736971839966,-10338.84551742,0.00022493,2]
[349107622,1736971839976,-3923.12,0.000225,14]
[349107624,1736971839985,-1000.0,0.00022546,2]
[349107626,1736971839995,-1000.0,0.00022561,2]
[349107627,1736971840005,-1000.0,0.00022561,2]
[349107629,1736971840015,-589.21,0.00022561,3]
[349107630,1736971840024,-550.52,0.00022562,3]
[349107631,1736971840034,-2240.67,0.00022562,3]
[349107633,1736971840043,-466.53351265,0.00022572,2]
[349107635,1736971840054,-1000.0,0.00022582,2]
[349107636,1736971840063,-620.0,0.000226,2]
[349107637,1736971840073,-1000.0,0.00022605,2]
[349107638,1736971840082,-1000.0,0.00022618,2]
[349107639,1736971840092,-1000.0,0.00022624,2]
[349107640,1736971840101,-1000.0,0.00022639,2]
[349107641,1736971840111,-587.0,0.0002265,2]
[349107642,1736971840121,-428.36992355,0.00022654,2]
[349107643,1736971840130,-682.75183114,0.00022659,2]
[349107644,1736971840140,-1000.0,0.00022668,2]
[349107645,1736971840150,-1000.0,0.0002268,2]
[349107646,1736971840160,-1000.0,0.00022696,2]
[349107647,1736971840170,-589.21,0.00022698,3]
[349107648,1736971840180,-550.52,0.00022699,3]
[349107649,1736971840190,-2240.67,0.00022699,3]
[349107650,1736971840199,-570.68357035,0.00022709,2]
[349107651,1736971840209,-1000.0,0.0002272,2]
[349107652,1736971840218,-1000.0,0.00022732,2]
[349107653,1736971840227,-1000.0,0.00022733,2]
[349107654,1736971840238,-1000.0,0.00022742,2]
[349107655,1736971840247,-440.0632817,0.00022769,2]
[349107656,1736971840257,-1000.0,0.00022775,2]
[349107657,1736971840267,-1000.0,0.00022783,2]
[349107658,1736971840276,-1000.0,0.00022784,2]
[349107659,1736971840286,-1000.0,0.00022799,2]
[349107660,1736971840295,-2311.0,0.000228,2]
[349107661,1736971840307,-395.0,0.000228,2]
[349107663,1736971840317,-682.75183114,0.00022831,2]
[349107665,1736971840328,-589.21,0.00022835,3]
[349107666,1736971840338,-550.52,0.00022836,3]
[349107667,1736971840349,-2240.67,0.00022836,3]
[349107669,1736971840358,-339.95459923,0.000229,2]
[349107671,1736971840368,-589.38737518,0.00022972,3]
[349107673,1736971840378,-500.0,0.00022973,2]
[349107675,1736971840388,-500.0,0.00022973,2]
[349107676,1736971840399,-500.0,0.00022973,2]
[349107677,1736971840409,-550.66217373,0.00022973,3]
[349107678,1736971840419,-2240.79942221,0.00022973,3]
[349107679,1736971840429,-500.0,0.00022976,2]
[349107680,1736971840439,-261.59201923,0.00022999,2]
[349107681,1736971840450,-196254.99270031,0.00023,10]
[349107682,1736971840460,-708.50202435,0.00023,2]
[349107683,1736971840471,-500.0,0.00023,7]
[349107684,1736971840482,-500.0,0.00023,2]
[349107685,1736971840491,-234242.62782998,0.00023,2]
[349107691,1736971840564,-591891.03531009,0.00023,2]
[349107692,1736971840573,-7438.69753278,0.00023,2]
[349107693,1736971840582,-1994.83,0.00023,14]
[349107694,1736971840592,-8171.02,0.00023,2]
[349107695,1736971840603,-150.0,0.00023,2]
[349107696,1736971840612,-7438.69753278,0.00023,3]
[349107698,1736971840622,-682.75183114,0.00023003,2]
[349107700,1736971840632,-1585.11,0.000231,2]
[349107701,1736971840642,-287226.02166884,0.000231,2]
[349107702,1736971840652,-682.75183114,0.00023176,2]
[349107703,1736971840663,-151.0,0.00023202,7]
[349107704,1736971840672,-432.2417881,0.0002326,2]
[349107705,1736971840683,-214.9766468,0.0002326,2]
[349107706,1736971840695,-306.1904191,0.0002326,2]
[349107707,1736971840706,-153.0,0.0002326,2]
[349107708,1736971840715,-306.0,0.0002326,2]
[349107709,1736971840724,-214.9766468,0.0002326,2]
[349107710,1736971840733,-153.9757311,0.0002326,2]
[349107711,1736971840743,-153.0,0.0002326,2]
[349107712,1736971840752,-153.9757311,0.0002326,2]
[349107713,1736971840763,-214.9766468,0.0002326,2]
[349107714,1736971840773,-214.9766468,0.0002326,2]
[349107715,1736971840783,-153.9757311,0.0002326,2]
[349107716,1736971840793,-153.9757311,0.0002326,2]
[349107717,1736971840806,-153.0,0.0002326,2]
[349107718,1736971840817,-214.9766468,0.0002326,2]
[349107719,1736971840827,-213.1058006,0.0002326,2]
[349107720,1736971840836,-153.9757311,0.0002326,2]
[349107721,1736971840848,-153.0,0.0002326,2]
[349107722,1736971840858,-153.9757311,0.0002326,2]
[349107723,1736971840868,-153.9757311,0.0002326,2]
[349107724,1736971840879,-570.68357035,0.00023307,2]
[349107725,1736971840890,-1573.0,0.00023328,7]
[349107726,1736971840900,-5000.0,0.00023342,2]
[349107727,1736971840910,-682.75183114,0.00023348,2]
[349107728,1736971840920,-155.0,0.00023373,2]
[349107729,1736971840930,-155.0,0.00023373,2]
[349107730,1736971840940,-155.0,0.00023373,2]
[349107731,1736971840949,-155.0,0.00023373,2]
[349107732,1736971840959,-155.0,0.00023373,2]
[349107733,1736971840968,-155.0,0.00023373,2]
[349107734,1736971840978,-155.0,0.00023373,2]
[349107735,1736971840987,-155.0,0.00023373,2]
[349107736,1736971840997,-155.0,0.00023373,2]
[349107737,1736971841007,-155.0,0.00023373,2]
[349107738,1736971841017,-155.0,0.00023373,2]
[349107739,1736971841026,-155.0,0.00023373,2]
[349107740,1736971841036,-155.0,0.00023373,2]
[349107741,1736971841045,-155.0,0.00023373,2]
[349107742,1736971841060,-155.0,0.00023373,2]
[349107743,1736971841069,-155.0,0.00023373,2]
[349107744,1736971841079,-155.0,0.00023373,2]
[349107745,1736971841089,-155.0,0.00023373,2]
[349107746,1736971841099,-155.0,0.00023373,2]
[349107747,1736971841109,-158.18,0.00023373,2]
[349107748,1736971841118,-500.0,0.000235,2]
[349107749,1736971841128,-500.0,0.000235,2]
[349107750,1736971841138,-500.0,0.000235,7]
[349107751,1736971841147,-500.0,0.000235,7]
[349107752,1736971841157,-545.70162608,0.00023521,2]
[349107753,1736971841167,-1000.0,0.00023521,2]
[349107754,1736971841179,-682.75183114,0.00023521,2]
[349107755,1736971841189,-151.0,0.00023562,7]
[349107756,1736971841199,-2990.49364753,0.0002362,60]